bitfinex/quotes_ETHUSD_20240710
["timestamp","ask_amount","ask_price","bid_price","bid_amount"]
[1720616185411,3.21865,3106.9,3105.5,3.21999]
[1720616185686,3.21865,3106.9,3105.1,7.47]
[1720616185687,3.21924,3106.4,3105.1,10.69043]
[1720616185850,3.2193,3106.3,3105.1,10.69043]
[1720616186040,3.0,3106.2,3105.1,10.69043]
[1720616186361,0.62193,3106.1,3105.1,10.69043]
[1720616187150,0.62193,3106.1,3104.9,2.39686432]
[1720616187151,3.21996,3105.7,3104.9,2.39686432]
[1720616187366,6.21999,3105.6,3104.9,2.39686432]
[1720616187545,0.621999,3105.5,3104.9,2.39686432]
[1720616187851,3.621999,3105.5,3104.9,2.39686432]
[1720616188273,3.0,3105.7,3104.9,2.39686432]
[1720616188448,6.2199,3105.7,3104.9,2.39686432]
[1720616188643,3.0,3105.7,3104.9,2.39686432]
[1720616188877,2.54327268,3107.0,3105.6,3.21998]
[1720616189081,3.21883,3106.8,3105.6,3.21998]
[1720616189252,0.25432727,3106.9,3105.4,7.47]
[1720616189444,3.21916,3106.4,3105.4,7.47]
[1720616191283,0.25432727,3106.9,3105.4,7.47]
[1720616191284,3.47298727,3106.9,3105.4,7.47]
[1720616191480,3.21875,3106.8,3105.6,6.43982]
[1720616191805,0.58527873,3106.8,3105.7,2.471]
[1720616192009,2.93915717,3107.5,3105.7,2.471]
[1720616192274,3.21861,3107.0,3105.7,2.471]
[1720616192483,3.21861,3107.0,3105.7,5.69087]
[1720616192664,6.21864,3106.9,3105.7,5.69087]
[1720616193260,3.21901,3106.6,3105.7,2.471]
[1720616193452,3.0,3106.5,3105.7,2.471]
[1720616194170,3.0,3106.5,3105.4,10.69018]
[1720616194681,3.21923,3106.4,3105.4,7.47]
[1720616194874,3.841203,3106.3,3105.4,7.47]
[1720616195980,3.841193,3106.3,3105.4,7.47]
[1720616196686,0.621923,3106.3,3105.4,7.47]
[1720616196986,0.621923,3106.3,3105.4,10.69017]
[1720616197186,8.87505,3106.7,3105.4,10.69017]
[1720616197187,3.0,3106.6,3105.4,10.69017]
[1720616197484,3.21895,3106.6,3105.4,10.69017]
[1720616197788,6.21912,3106.5,3105.4,7.47]
[1720616198088,3.21938,3106.2,3105.4,7.47]
[1720616198282,3.643867,3106.1,3105.4,7.47]
[1720616198587,3.21974,3105.9,3105.4,7.47]
[1720616198790,6.43949,3105.9,3105.4,7.47]
[1720616199186,3.21974,3105.9,3105.4,7.47]
[1720616200487,3.21974,3105.9,3105.0,12.16]
[1720616200488,3.21974,3105.9,3105.0,19.63]
[1720616201278,4.2280527,3105.9,3105.0,19.63]
[1720616202178,1.0083127,3105.9,3105.0,19.63]
[1720616202377,3.0,3106.1,3105.0,22.85058]
[1720616202577,0.50506185,3105.9,3105.1,3.2205]
[1720616206657,0.50506185,3105.9,3105.1,6.50539893]
[1720616207588,0.50506185,3105.9,3105.3,3.22024]
[1720616207790,3.21892,3106.7,3105.5,3.22003]
[1720616207791,3.0,3106.6,3105.5,3.22003]
[1720616207985,0.621892,3106.5,3105.6,0.06439041]
[1720616208180,0.50499962,3106.3,3105.6,0.06439041]
[1720616208892,0.50499962,3106.3,3105.5,7.0905261]
[1720616209069,0.50499962,3106.3,3105.5,3.8704961]
[1720616209273,0.50499962,3106.3,3105.5,0.6504661]
[1720616209464,0.50499962,3106.3,3105.3,3.22023]
[1720616209664,0.50499962,3106.3,3105.2,2.4262]
[1720616209867,0.50499962,3106.3,3105.2,5.64658]
[1720616211094,3.72427962,3106.3,3105.2,5.64658]
[1720616211924,6.94361962,3106.3,3105.2,2.4262]
[1720616212062,3.91378196,3106.2,3105.2,2.4262]
[1720616212268,6.91378196,3106.2,3105.2,2.4262]
[1720616214130,6.21942,3106.2,3105.2,2.4262]
[1720616214430,0.50499962,3106.3,3105.3,0.06439886]
[1720616215078,0.50499962,3106.3,3105.5,3.22006]
[1720616215265,0.50499962,3106.3,3105.4,0.0643908]
[1720616215539,0.50499962,3106.3,3105.2,5.64654]
[1720616215703,0.50499962,3106.3,3105.2,7.580248]
[1720616216268,3.72427962,3106.3,3105.2,7.580248]
[1720616216465,3.72427962,3106.3,3105.2,4.359908]
[1720616217628,3.21947,3106.1,3105.3,2.80121563]
[1720616217781,3.21958,3106.0,3105.1,0.66732091]
[1720616217992,3.21958,3106.0,3105.0,7.47]
[1720616218501,3.21978,3105.8,3105.1,2.80151405]
[1720616218705,3.863716,3105.8,3105.2,1.12060562]
[1720616219017,3.863716,3105.8,3105.0,8.13732091]
[1720616219313,3.863716,3105.8,3105.1,2.80146193]
[1720616219536,3.863716,3105.8,3105.2,2.80146193]
[1720616219669,3.21958,3106.0,3105.3,1.12058477]
[1720616219875,2.3075,3106.1,3105.1,0.66732091]
[1720616220078,2.3075,3106.1,3105.2,3.46872771]
[1720616220306,2.3075,3106.1,3105.3,2.8014068]
[1720616220486,2.3075,3106.1,3105.4,1.12056272]
[1720616220707,1.174638,3106.0,3105.2,0.66732091]
[1720616221025,4.174638,3106.0,3105.3,2.80125338]
[1720616221171,4.174638,3106.0,3105.4,2.80125338]
[1720616221370,4.174638,3106.0,3105.2,0.66732091]
[1720616221606,4.174638,3106.0,3105.3,2.80130707]
[1720616221813,4.174638,3106.0,3105.2,0.66732091]
[1720616221814,0.6482138,3105.9,3105.4,1.12052283]
[1720616221977,3.21983,3105.8,3105.0,8.13732091]
[1720616222175,3.21989,3105.7,3105.1,1.12062041]
[1720616222384,3.21989,3105.7,3105.0,7.47]
[1720616222574,0.643972,3105.6,3105.0,7.47]
[1720616222800,0.643972,3105.6,3104.8,0.66732091]
[1720616223002,0.643972,3105.6,3104.9,2.80170961]
[1720616223215,0.643972,3105.6,3105.0,1.12068384]
[1720616223405,0.643972,3105.6,3104.8,0.66732091]
[1720616223703,0.643972,3105.6,3104.9,2.80171835]
[1720616223903,0.643972,3105.6,3104.7,8.13732091]
[1720616224218,0.643972,3105.6,3104.8,2.80176102]
[1720616224378,0.643972,3105.6,3104.7,10.91135414]
[1720616224587,0.643972,3105.6,3104.8,1.12068901]
[1720616224789,0.643972,3105.6,3104.7,7.47]
[1720616225488,3.2201,3105.5,3104.7,7.47]
[1720616226190,0.643972,3105.6,3104.7,7.47]
[1720616226397,3.21984,3105.8,3104.7,7.47]
[1720616226686,3.21984,3105.8,3104.7,10.69091]
[1720616226901,3.8678838,3105.9,3104.8,2.8015058]
[1720616227095,3.0,3105.8,3104.7,11.35823091]
[1720616227292,6.21984,3105.8,3104.8,2.8014697]
[1720616227481,1.00877238,3105.7,3104.7,7.47]
[1720616227899,4.22867238,3105.7,3104.7,7.47]
[1720616228192,1.00877238,3105.7,3104.8,0.06440839]
[1720616228397,1.00877238,3105.7,3104.7,10.69091]
[1720616228597,3.0,3105.8,3104.7,10.69091]
[1720616228794,5.52699,3106.1,3104.8,3.28515792]
[1720616228992,2.3075,3106.1,3105.0,3.22054]
[1720616229232,3.72427962,3106.3,3105.2,3.22031]
[1720616229233,0.50499962,3106.3,3105.2,3.22031]
[1720616229420,0.50499962,3106.3,3105.3,0.06439428]
[1720616229607,0.50499962,3106.3,3105.4,0.32847043]
[1720616229998,0.14049069,3106.3,3105.4,0.32847043]
[1720616230211,3.21974,3105.9,3105.1,7.47]
[1720616230519,3.21952,3106.1,3105.1,7.47]
[1720616230719,3.36012664,3106.0,3105.1,7.47]
[1720616231015,0.14050664,3105.9,3105.1,7.47]
[1720616231400,3.36017664,3105.9,3105.1,7.47]
[1720616231604,0.33601766,3105.8,3105.1,7.47]
[1720616232121,5.4916,3106.5,3105.1,7.47]
[1720616232303,0.14050007,3106.4,3105.1,7.47]
[1720616232521,3.14051052,3106.4,3105.1,7.47]
[1720616232713,3.21964,3106.0,3105.1,7.47]
[1720616233298,3.21936,3106.2,3105.1,7.47]
[1720616233512,3.14050104,3106.1,3105.2,1.069055]
[1720616233688,0.14050104,3106.0,3105.2,1.069055]
[1720616234528,3.0,3106.1,3105.3,0.0644002]
[1720616234729,3.0,3106.3,3105.3,3.2846402]
[1720616235030,6.21895,3106.6,3105.4,6.87556952]
[1720616235197,0.14048491,3106.5,3105.5,5.5397516]
[1720616235397,0.14048491,3106.5,3105.5,5.47536]
[1720616236053,0.28095601,3106.6,3105.6,3.28432183]
[1720616236205,0.28095601,3106.6,3105.7,0.55396218]
[1720616236717,0.28095601,3106.6,3105.5,2.2553]
[1720616236918,3.49995601,3106.6,3105.5,2.2553]
[1720616237099,0.140478,3106.5,3105.6,0.06439894]
[1720616237306,0.28095601,3106.6,3105.7,0.06438977]
[1720616237548,0.28095601,3106.6,3105.9,2.488]
[1720616237748,0.28095601,3106.6,3106.0,0.570777]
[1720616237749,0.14047801,3106.6,3106.0,0.570777]
[1720616239253,0.14047801,3106.6,3105.5,7.47]
[1720616239254,0.14047801,3106.6,3105.5,12.98999]
[1720616239909,0.14047801,3106.6,3105.7,3.21988]
[1720616240112,0.14047801,3106.6,3105.9,3.21967]
[1720616240322,0.14047801,3106.6,3106.0,3.21955]
[1720616241340,0.14047801,3106.6,3106.3,3.21922]
[1720616241526,0.14047801,3106.6,3106.4,0.643849]
[1720616243304,0.14047801,3106.6,3106.1,2.3962]
[1720616243510,0.14047801,3106.6,3106.1,5.61565]
[1720616243710,0.14047801,3106.6,3106.2,3.21936]
[1720616244744,0.14047801,3106.6,3106.4,3.21915]
[1720616245316,0.14047801,3106.6,3106.5,3.21905]
[1720616245511,0.14047801,3106.6,3106.5,0.64382]
[1720616246741,0.14047801,3106.6,3106.2,3.21931]
[1720616248416,0.14047801,3106.6,3106.2,6.43861]
[1720616248618,0.14047801,3106.6,3105.9,7.47]
[1720616249014,2.4275,3106.9,3105.9,7.47]
[1720616251551,5.64615,3106.9,3105.9,7.47]
[1720616251848,0.886476,3106.8,3105.9,7.47]
[1720616252226,2.4275,3106.9,3105.9,7.47]
[1720616252435,5.64614,3106.9,3105.9,7.47]
[1720616257162,2.4275,3106.9,3105.9,7.47]
[1720616257358,5.4275,3106.9,3105.9,7.47]
[1720616257522,2.3659,3107.3,3106.0,0.06438488]
[1720616257721,2.3659,3107.3,3106.1,0.75343849]
[1720616258455,5.58415,3107.3,3106.2,3.21936]
[1720616258654,3.0,3107.2,3106.2,3.21936]
[1720616259246,2.3659,3107.3,3106.3,3.21924]
[1720616259421,3.21808,3107.5,3106.4,0.321924]
[1720616260222,5.69667,3107.7,3106.4,0.321924]
[1720616260428,5.69667,3107.7,3106.5,3.21899]
[1720616260664,3.0,3107.6,3106.5,3.21899]
[1720616261359,6.21797,3107.6,3106.5,3.21899]
[1720616261661,6.21797,3107.6,3106.6,0.5890114]
[1720616263328,6.21797,3107.6,3106.5,10.68899]
[1720616263729,6.21797,3107.6,3106.5,10.68898]
[1720616263950,9.43596,3107.6,3106.5,10.68898]
[1720616264682,6.43596,3107.6,3106.5,10.68898]
[1720616265137,3.21797,3107.6,3106.5,13.90797]
[1720616265343,3.21797,3107.6,3106.6,1.6579094]
[1720616265963,3.72264023,3107.8,3106.6,4.94122037]
[1720616266157,3.0,3107.7,3106.6,4.94122037]
[1720616266541,3.0,3107.7,3106.7,3.21884]
[1720616266743,3.0,3107.7,3106.8,0.49411204]
[1720616267445,3.0,3107.7,3106.8,3.71282204]
[1720616267766,3.0,3107.8,3106.8,3.71282204]
[1720616267932,3.0,3107.8,3106.8,0.49411204]
[1720616268137,0.50481053,3108.1,3107.1,2.4241]
[1720616268364,0.29445105,3108.1,3107.1,6.59300052]
[1720616268867,2.4397,3108.3,3107.3,3.21817]
[1720616269066,3.7216915,3108.6,3107.3,3.21817]
[1720616269067,0.5047615,3108.6,3107.3,3.28252464]
[1720616269264,3.7216915,3108.6,3107.4,3.21806]
[1720616269474,0.1127762,3108.9,3108.1,3.21733]
[1720616269683,0.1127762,3108.9,3108.2,5.66418]
[1720616270348,0.1127762,3108.9,3108.3,0.06433767]
[1720616271070,0.1127762,3108.9,3108.2,2.4469]
[1720616271439,0.1127762,3108.9,3108.2,5.66411]
[1720616271638,0.1127762,3108.9,3108.3,0.888144]
[1720616272741,0.1127762,3108.9,3107.9,8.92534]
[1720616273147,0.1127762,3108.9,3107.9,5.7078]
[1720616273550,0.1127762,3108.9,3108.0,3.21748]
[1720616273865,0.1127762,3108.9,3107.9,5.7078]
[1720616274071,0.1127762,3108.9,3107.9,2.4903]
[1720616274269,0.1127762,3108.9,3108.0,0.570799]
[1720616274644,0.1127762,3108.9,3108.0,3.788289]
[1720616276564,0.1127762,3108.9,3108.1,3.21739]
[1720616277039,0.1127762,3108.9,3108.2,0.06433814]
[1720616277244,0.1127762,3108.9,3108.2,3.28161814]
[1720616277462,0.1127762,3108.9,3108.3,0.71422895]
[1720616277840,0.1127762,3108.9,3108.3,3.93132895]
[1720616278046,0.1127762,3108.9,3108.3,3.28143714]
[1720616278353,0.1127762,3108.9,3108.8,3.21667]
[1720616279855,0.1127762,3108.9,3108.8,6.43334]
[1720616280264,3.21497,3110.5,3109.1,3.21635]
[1720616280450,3.21503,3110.4,3109.2,3.537835]
[1720616280650,3.58691184,3110.5,3109.2,3.537835]
[1720616280651,3.21535,3110.1,3109.2,0.321635]
[1720616280845,3.21546,3110.0,3108.8,2.2791]
[1720616281054,3.21564,3109.8,3108.6,3.0]
[1720616281352,5.49784,3110.2,3108.8,3.21664]
[1720616281571,5.49784,3110.2,3108.7,0.06432673]
[1720616281572,0.37194184,3110.5,3108.9,0.06431968]
[1720616281769,0.37194184,3110.5,3109.4,3.21597]
[1720616281770,3.0,3110.1,3109.4,3.21597]
[1720616282055,3.37194184,3110.5,3109.5,0.321597]
[1720616282250,0.37194184,3110.5,3109.5,0.321597]
[1720616282454,3.21509,3110.4,3109.5,0.321597]
[1720616282659,3.21533,3110.1,3109.0,2.3799]
[1720616282956,3.21533,3110.1,3108.8,3.2166]
[1720616282957,3.21552,3110.0,3108.8,3.21665]
[1720616283149,6.43105,3110.0,3108.8,3.21665]
[1720616283583,3.21552,3110.0,3108.8,3.21665]
[1720616283753,6.43104,3110.0,3108.8,3.21665]
[1720616283952,3.21555,3109.9,3108.9,0.321665]
[1720616284305,3.21555,3109.9,3108.6,8.62788]
[1720616284452,3.21551,3110.0,3108.8,3.21662]
[1720616284761,3.2156,3109.9,3108.6,5.4111]
[1720616284955,3.21551,3110.0,3108.6,8.62792]
[1720616284956,3.21565,3109.8,3108.6,8.62792]
[1720616285588,3.21565,3109.8,3108.6,5.4111]
[1720616285752,3.21565,3109.8,3108.7,1.162799]
[1720616285954,3.21565,3109.8,3108.7,4.379569]
[1720616286151,3.21565,3109.8,3108.7,1.162799]
[1720616286394,3.21575,3109.7,3108.7,1.162799]
[1720616288759,3.21575,3109.7,3108.6,2.4111]
[1720616289876,3.2159,3109.6,3108.6,2.4111]
[1720616290353,3.21595,3109.5,3108.6,2.4111]
[1720616291601,3.21587,3109.6,3108.6,2.4111]
[1720616292384,3.21556,3109.9,3108.7,0.06432745]
[1720616292691,3.0,3109.8,3108.8,0.56922175]
[1720616292892,3.0,3109.8,3108.9,0.06432368]
[1720616293385,6.21566,3109.8,3108.9,0.06432368]
[1720616293711,3.0,3109.8,3108.9,0.06432368]
[1720616293899,3.0,3109.9,3108.9,0.06432368]
[1720616294062,0.50440745,3111.0,3109.1,3.21635]
[1720616294063,3.21502,3110.4,3109.1,3.21635]
[1720616294252,3.0,3110.0,3109.2,3.84110946]
[1720616294460,3.0,3110.0,3109.3,0.0643145]
[1720616294665,3.21502,3110.4,3109.3,0.0643145]
[1720616294864,2.3942,3110.7,3109.4,3.21604]
[1720616295176,3.21498,3110.5,3109.4,3.21604]
[1720616295377,3.21498,3110.5,3109.5,0.321604]
[1720616296102,3.0,3110.4,3109.5,0.321604]
[1720616296799,3.0,3110.4,3109.5,3.60178423]
[1720616297182,3.0,3110.6,3109.5,3.60178423]
[1720616297396,6.21484,3110.6,3109.5,3.537474]
[1720616297570,7.397215,3110.6,3109.5,3.537474]
[1720616298364,6.21484,3110.6,3109.5,3.537474]
[1720616298565,3.21491,3110.5,3109.5,0.321604]
[1720616298800,3.0,3110.6,3109.3,3.28040657]
[1720616299124,3.0,3110.6,3109.6,2.3177]
[1720616299401,6.21481,3110.6,3109.6,2.3177]
[1720616300281,3.0,3110.6,3109.7,0.06430653]
[1720616300502,3.21453,3110.9,3109.7,3.21571]
[1720616300706,3.21468,3110.8,3109.8,0.553341]
[1720616300988,2.4761,3111.1,3109.9,0.06430279]
[1720616301201,3.21425,3111.2,3110.0,2.3786]
[1720616301382,3.37632579,3111.4,3110.0,2.3786]
[1720616301383,0.50432579,3111.4,3110.0,2.3786]
[1720616301795,3.21425,3111.2,3110.0,5.65827704]
[1720616302001,3.21425,3111.2,3110.1,0.8873757]
[1720616302308,3.21425,3111.2,3110.1,4.1026857]
[1720616302507,3.21404,3111.4,3110.1,4.1026857]
[1720616302685,3.21419,3111.2,3110.1,4.1026857]
[1720616302881,3.21404,3111.4,3110.1,4.16697881]
[1720616303080,3.0,3111.3,3110.2,4.15691788]
[1720616303314,3.21412,3111.3,3110.2,4.15691788]
[1720616303499,3.0,3111.2,3110.2,4.15691788]
[1720616304416,3.21385,3111.6,3110.3,3.27939021]
[1720616304616,0.5042787,3111.9,3110.4,5.3481]
[1720616304795,0.1127762,3112.0,3110.5,1.09123902]
[1720616305711,3.21357,3111.8,3110.7,3.21467]
[1720616306024,0.1127762,3112.0,3110.8,2.54038007]
[1720616306320,0.1127762,3112.0,3110.9,3.21449]
[1720616306491,3.3261962,3112.0,3111.0,0.06427594]
[1720616306690,3.3261962,3112.0,3111.1,0.32787659]
[1720616306890,0.1127762,3112.0,3111.2,0.06427594]
[1720616307194,0.1127762,3112.0,3111.3,2.4721]
[1720616308038,6.42707,3111.9,3111.1,0.32787659]
[1720616308191,3.21353,3111.9,3111.1,0.32787659]
[1720616308392,6.42708,3111.9,3111.1,0.32787659]
[1720616308725,3.21358,3111.8,3111.1,0.32787659]
[1720616310419,3.3261962,3112.0,3111.1,0.32787659]
[1720616310794,0.1127762,3112.0,3111.2,0.06427905]
[1720616311110,0.1127762,3112.0,3111.4,2.4628]
[1720616316429,0.1127762,3112.0,3111.5,0.06426806]
[1720616316931,0.1127762,3112.0,3111.4,5.67675]
[1720616317160,0.1127762,3112.0,3111.5,6.08588]
[1720616317364,0.1127762,3112.0,3111.9,8.41467]
[1720616317559,1e-08,3112.0,3111.9,8.41467]
[1720616317847,0.09983867,3113.2,3112.2,3.21315]
[1720616319155,3.31198867,3113.2,3112.0,3.21335]
[1720616319473,3.31198867,3113.2,3112.1,0.841455]
[1720616319652,3.0,3113.1,3112.1,0.841455]
[1720616320519,6.21229,3113.1,3112.1,0.841455]
[1720616320850,3.2125,3112.9,3111.9,2.3292]
[1720616321147,3.21255,3112.8,3111.9,2.3292]
[1720616321509,3.0,3113.1,3111.9,2.3292]
[1720616321510,3.21265,3112.7,3111.9,2.3292]
[1720616321713,3.21277,3112.6,3111.9,2.3292]
[1720616322962,3.21244,3112.9,3111.9,2.3292]
[1720616323161,3.0,3112.8,3112.0,0.23292]
[1720616324267,3.2128,3112.6,3112.0,0.23292]
[1720616324476,3.2128,3112.6,3111.9,2.3292]
[1720616324656,2.4853,3112.5,3110.9,7.47]
[1720616324861,2.4853,3112.5,3110.8,2.333]
[1720616324862,3.21378,3111.6,3110.8,2.333]
[1720616325051,2.872,3112.4,3110.8,2.333]
[1720616325052,3.21365,3111.8,3110.8,2.333]
[1720616325266,3.21367,3111.7,3110.8,2.333]
[1720616325464,3.0,3112.1,3110.8,2.333]
[1720616325673,3.0,3112.1,3110.9,0.06428345]
[1720616325876,3.0,3112.1,3110.9,3.27873345]
[1720616326081,3.0,3112.1,3111.1,2.3649]
[1720616326246,3.21306,3112.3,3111.1,5.57916]
[1720616326440,3.21316,3112.2,3111.1,5.57916]
[1720616326657,3.0,3112.1,3111.1,8.79339]
[1720616326859,3.0,3112.1,3111.1,5.57913]
[1720616327052,3.0,3112.1,3111.2,1.20123034]
[1720616328582,3.0,3112.1,3111.4,3.0]
[1720616328756,3.0,3112.5,3111.5,2.4913]
[1720616328960,3.21274,3112.6,3111.5,2.4913]
[1720616329159,3.21274,3112.6,3111.6,0.870521]
[1720616329160,3.0,3112.5,3111.6,0.870521]
[1720616330578,3.21296,3112.4,3111.5,2.4913]
[1720616331158,3.0,3112.5,3111.5,5.4913]
[1720616331465,3.21249,3112.9,3111.6,3.27797591]
[1720616331681,3.0,3112.8,3111.7,5.61256]
[1720616331868,0.01811654,3113.3,3111.8,0.56768259]
[1720616332457,3.23019654,3113.3,3112.1,2.3099]
[1720616332647,3.23019654,3113.3,3112.1,2.37415288]
[1720616333186,3.21223,3113.1,3112.1,2.37415288]
[1720616333388,3.21223,3113.1,3112.2,0.85875029]
[1720616334087,3.0,3113.0,3112.3,0.06425288]
[1720616334284,3.0,3113.0,3112.2,0.85875029]
[1720616337866,3.21257,3112.8,3112.2,0.85875029]
[1720616338058,3.21257,3112.8,3112.1,2.3099]
[1720616338780,3.21265,3112.7,3112.1,2.3099]
[1720616338994,3.21275,3112.6,3112.1,2.3099]
[1720616340004,3.0,3113.0,3112.1,2.3099]
[1720616340203,3.21233,3113.0,3112.2,0.53099]
[1720616340380,6.42517,3112.8,3112.1,2.3099]
[1720616340595,9.08426,3113.1,3111.8,8.03768259]
[1720616340786,3.21283,3112.6,3111.8,7.47]
[1720616340983,3.21285,3112.5,3111.8,7.47]
[1720616341176,6.21297,3112.4,3111.5,2.3991]
[1720616341372,3.0,3112.4,3111.5,2.3991]
[1720616341679,3.0,3112.4,3111.1,7.47]
[1720616341680,3.21336,3112.0,3111.1,9.859]
[1720616342017,3.21366,3111.8,3111.3,1.10602303]
[1720616342304,3.21366,3111.8,3111.1,2.389]
[1720616342305,3.21364,3111.8,3111.1,2.389]
[1720616342685,3.21341,3112.0,3111.1,2.389]
[1720616342883,6.21353,3111.9,3111.1,2.389]
[1720616343404,3.21368,3111.7,3111.1,2.389]
[1720616345090,3.21368,3111.7,3110.8,7.47]
[1720616345293,3.21389,3111.5,3110.9,0.747]
[1720616346605,3.21389,3111.5,3110.6,2.4339]
[1720616346807,3.0,3111.9,3110.6,2.4339]
[1720616347008,3.21419,3111.2,3110.6,2.4339]
[1720616347691,3.21399,3111.4,3110.6,2.4339]
[1720616347887,3.0,3111.3,3110.7,0.24339]
[1720616348113,6.21392,3111.5,3110.7,0.24339]
[1720616348407,3.0,3111.5,3110.7,0.24339]
[1720616348635,3.0,3111.4,3110.7,0.24339]
[1720616348934,6.21341,3112.0,3110.7,6.52235669]
[1720616349080,6.21341,3112.0,3110.8,0.89562567]
[1720616349410,3.21348,3111.9,3110.8,0.95990712]
[1720616349602,3.0,3111.8,3110.8,0.95990712]
[1720616349983,3.0,3111.8,3110.8,0.89562567]
[1720616350181,6.21363,3111.8,3110.9,0.73536957]
[1720616350383,3.0,3111.8,3110.9,0.73536957]
[1720616350913,3.0,3112.0,3110.9,0.73536957]
[1720616351315,2.95,3112.0,3111.0,2.4336]
[1720616351609,3.21348,3111.9,3111.1,0.31689696]
[1720616351984,3.21348,3111.9,3111.0,2.4336]
[1720616351985,3.21363,3111.8,3111.0,2.4336]
[1720616352185,3.21387,3111.6,3111.0,2.4336]
[1720616352413,3.21352,3111.9,3111.0,2.4336]
[1720616352718,3.21358,3111.8,3111.0,2.4336]
[1720616353188,2.95,3112.0,3111.0,2.4336]
[1720616353525,0.50418331,3112.1,3111.1,6.52186362]
[1720616353811,3.21301,3112.4,3111.1,6.52186362]
[1720616353987,3.21314,3112.3,3111.1,3.45759]
[1720616354182,3.21316,3112.2,3111.1,0.24336]
[1720616354409,3.21342,3112.0,3111.1,0.24336]
[1720616354790,3.21362,3111.8,3111.1,0.24336]
[1720616355197,6.42727,3111.8,3111.1,0.24336]
[1720616355395,6.42727,3111.8,3111.0,2.4336]
[1720616355703,3.21397,3111.5,3111.0,2.4336]
[1720616355904,3.0,3111.7,3110.6,7.47]
[1720616356238,3.0,3111.7,3110.5,2.4298]
[1720616356239,3.21431,3111.1,3110.5,2.4298]
[1720616356591,3.2141,3111.3,3110.5,2.4298]
[1720616356945,3.0,3111.2,3110.5,2.4298]
[1720616357236,3.0,3111.2,3110.5,2.67278]
[1720616357929,3.0,3111.6,3110.6,0.06428847]
[1720616358094,6.21365,3111.8,3110.6,3.21478]
[1720616358290,6.21365,3111.8,3110.6,6.42956]
[1720616358539,6.21365,3111.8,3110.7,0.910234]
[1720616358827,3.0,3111.8,3110.8,0.06428334]
[1720616359033,3.0,3111.9,3110.9,2.3511]
[1720616360033,3.2133,3112.1,3111.0,0.06428169]
[1720616360243,3.2133,3112.1,3111.1,0.56298617]
[1720616360441,3.21291,3112.5,3111.2,3.21418]
[1720616360666,0.14023145,3112.4,3111.4,2.4677]
[1720616360965,3.71678347,3112.7,3111.4,2.4677]
[1720616361124,4.69690982,3112.7,3111.5,3.46699721]
[1720616361327,1.48420982,3112.7,3111.6,3.21374]
[1720616361624,3.21229,3113.1,3111.8,3.21356]
[1720616361829,0.14020773,3113.0,3111.8,3.27782168]
[1720616362573,0.14020764,3113.0,3111.8,3.27782168]
[1720616362936,3.21245,3112.9,3111.8,3.21356]
[1720616363162,3.0,3112.8,3111.8,3.21356]
[1720616363350,3.0,3112.8,3111.9,0.321356]
[1720616364059,6.21254,3112.8,3111.9,0.321356]
[1720616364228,6.21254,3112.8,3111.6,3.21371]
[1720616364634,3.21271,3112.7,3111.5,0.25319721]
[1720616364870,3.21287,3112.5,3111.5,0.25319721]
[1720616365158,3.21307,3112.3,3111.4,9.9377]
[1720616365327,3.0,3112.8,3111.4,9.9377]
[1720616365328,6.42583,3112.5,3111.4,9.9377]
[1720616365533,3.21306,3112.3,3111.4,9.9377]
[1720616366134,3.21326,3112.1,3111.4,9.9377]
[1720616366358,3.21326,3112.1,3111.4,2.4677]
[1720616366559,3.0,3112.0,3111.4,2.4677]
[1720616368443,3.0,3112.0,3111.4,2.71447]
[1720616370251,3.0,3112.2,3111.4,2.71447]
[1720616370449,3.21291,3112.5,3111.4,2.71447]
[1720616370779,2.4753,3113.0,3111.4,2.71447]
[1720616370780,3.21274,3112.6,3111.4,5.92843]
[1720616370973,3.21274,3112.6,3111.5,0.592843]
[1720616371555,3.21274,3112.6,3111.5,3.806713]
[1720616371757,6.0844,3113.0,3111.6,3.21376]
[1720616372055,3.21256,3112.8,3111.6,3.2137]
[1720616372572,3.21229,3113.1,3111.7,3.2136]
[1720616372796,3.21236,3113.0,3111.9,2.4929]
[1720616373157,6.52422867,3113.2,3111.9,5.70636]
[1720616373349,0.1401993,3113.1,3112.0,0.06426221]
[1720616373768,3.21231,3113.1,3112.0,0.06426221]
[1720616374286,0.09983867,3113.2,3112.0,3.27752221]
[1720616374463,0.09983867,3113.2,3112.2,3.2131]
[1720616374664,0.09983867,3113.2,3112.2,6.4262]
[1720616374979,0.09983867,3113.2,3112.2,6.2131]
[1720616375192,0.09983867,3113.2,3112.7,2.4049]
[1720616375388,0.09983867,3113.2,3112.8,3.21253]
[1720616375679,0.09983867,3113.2,3112.9,3.774163]
[1720616376271,0.09983867,3113.2,3113.1,3.21223]
[1720616378096,0.09983867,3113.2,3112.9,3.774173]
[1720616378255,0.09983867,3113.2,3112.9,0.561743]
[1720616378920,0.09983867,3113.2,3112.2,6.21313]
[1720616379214,0.09983867,3113.2,3112.2,8.65013]
[1720616379537,0.09983867,3113.2,3112.4,3.21294]
[1720616381172,0.09983867,3113.2,3112.6,3.21274]
[1720616381373,0.09983867,3113.2,3112.7,3.21259]
[1720616381558,0.09983867,3113.2,3112.8,0.642533]
[1720616381954,0.09983867,3113.2,3112.8,0.70677325]
[1720616382183,0.09983867,3113.2,3112.9,2.3753]
[1720616382392,0.09983867,3113.2,3113.0,3.27648433]
[1720616382762,0.09983867,3113.2,3113.1,6.21223]
[1720616382964,0.09983867,3113.2,3113.1,7.46286262]
[1720616383577,0.09983867,3113.2,3113.1,10.67509262]
[1720616383812,0.09983867,3113.2,3113.1,19.84162262]
[1720616385024,0.09983867,3113.2,3113.1,9.59070143]
[1720616385516,0.09983867,3113.2,3113.1,12.80293143]
[1720616385676,0.09983867,3113.2,3113.1,16.01516143]